[Event "44th Chess Olympiad Open 2022"]
[Site "Chennai"]
[Date "2022.08.01"]
[Round "4.57"]
[White "Eiti, Bashir"]
[Black "Alrehaili, Ahmed Abdullah S"]
[Result "1-0"]
[WhiteElo "2337"]
[BlackElo "1986"]
[Annotator "TA"]
[PlyCount "93"]
[EventDate "2022.??.??"]
[TimeControl "60"]

{[%evp 11,93,10,6,7,11,-8,0,0,16,14,20,15,31,34,70,39,36,39,66,55,104,100,97,
97,101,104,115,118,131,73,118,112,115,110,87,93,166,170,157,162,408,420,402,
211,230,42,54,53,117,108,145,125,207,194,195,207,200,199,280,279,294,294,293,
300,295,258,285,279,279,279,279,279,279,279,467,467,548,435,1328,1320,1844,
1869,1418,840]} 1. Nf3 {[%emt 0:00:03]} Nf6 {[%emt 0:00:22]} 2. g3 {[%emt 0:00:
00]} b5 {[%emt 0:00:55]} 3. Bg2 {[%emt 0:01:02]} Bb7 {[%emt 0:00:27]} 4. O-O {
[%emt 0:00:27]} e6 {[%emt 0:00:48]} 5. a4 {[%emt 0:00:42]} b4 {[%emt 0:00:38]}
6. d3 {[%emt 0:01:20]} Be7 {[%emt 0:02:59]} 7. e4 {[%emt 0:01:23] A05: Réti
Opening: 1 Nf3 Nf6.} O-O {[%emt 0:03:06]} 8. Qe2 {[%emt 0:01:13]} d6 {[%emt 0:
00:00]} 9. Nbd2 {[%emt 0:01:15] The position is equal.} Nbd7 {[%emt 0:03:38] 
[#]} 10. a5 $146 {[%emt 0:00:23]} ({Predecessor:} 10. Re1 e5 11. Nc4 c6 12. Bd2
a5 13. Rad1 Qc7 14. Bc1 Rfe8 15. b3 Bf8 16. Bb2 {0-1 (42) Kanellopoulos,P 
(2206)-Postny,E (2625) Achaia 2016}) 10... a6 {[%emt 0:02:14]} 11. c3 {[%emt 0:
00:00]} e5 {[%emt 0:07:51]} 12. cxb4 {[%emt 0:01:32]} d5 {[%emt 0:00:52]
Inhibits Nc4.} 13. exd5 {[%emt 0:00:59]} Bxb4 {[%emt 0:05:32]} 14. Nxe5 {
[%emt 0:02:52]} Re8 {[%emt 0:00:58]} 15. d4 {[%emt 0:00:33]} Bxd5 {[%emt 0:00:
00]} (15... Nxd5 $14 {feels stronger.} 16. Nb3 c5) 16. Bxd5 $16 {[%emt 0:02:14]
} Nxd5 {[%emt 0:02:42]} 17. Ndf3 {[%emt 0:05:19]} Nxe5 {[%emt 0:03:12]} 18.
dxe5 {[%emt 0:00:09]} Qc8 {[%emt 0:03:45]} 19. Qe4 {[%emt 0:01:22]} c6 {
[%emt 0:03:49]} 20. Ng5 {[%emt 0:00:28]} (20. Bd2 $142 Bxd2 21. Nxd2) 20... f5
{[%emt 0:01:49]} 21. Qh4 $36 {[%emt 0:00:25] Black is under strong pressure.}
h6 {[%emt 0:00:22]} 22. Nf3 {[%emt 0:00:12]} Rb8 {[%emt 0:02:49]} 23. Rd1 {
[%emt 0:07:08]} Qe6 {[%emt 0:04:01]} (23... f4 $16 {keeps fighting.}) 24. Qc4
$18 {[%emt 0:06:01]} Nc7 {[%emt 0:03:16][%cal Yd5c7,Yc7b5,Yb5d4]} 25. Qc2 {
[%emt 0:05:00] White is more active.} c5 $2 {[%emt 0:07:19]} (25... Nb5 {
is a better defense.} 26. Be3 c5) 26. Rd6 {[%emt 0:00:37]} Qf7 {[%emt 0:00:31]
[#]} 27. Nh4 {[%emt 0:10:55]} (27. Bxh6 $142 $1 {And now Ng5 would win.} gxh6 (
27... Ne6 28. Be3) 28. Rf6) 27... Nb5 {[%emt 0:03:09]} 28. Rg6 {[%emt 0:14:37]}
({Wrong is} 28. Qxf5 $2 Nxd6 29. exd6 Re1+ 30. Kg2 Qb7+ 31. Kh3 Rf8 $19) ({
Less strong is} 28. Rxa6 Nd4 29. Qd1 Rbd8 $11) (28. Nxf5 $18 Nxd6 29. Nxd6)
28... Nd4 $14 {[%emt 0:01:18]} 29. Qd3 {[%emt 0:01:52]} Re6 {[%emt 0:05:57]
White stays focused until the end.} (29... Kh7 $1 $14) 30. Rxe6 $16 {[%emt 0:
00:17]} Qxe6 {[%emt 0:00:03]} 31. Be3 {[%emt 0:02:22]} Qxe5 {[%emt 0:08:51]} (
31... Rb5 $16) 32. Qxa6 $18 {[%emt 0:01:27] Hoping for Qc4+.} Qd5 {[%emt 0:04:
42] Prevents Qc4.} 33. Bxd4 {[%emt 0:01:43]} cxd4 {[%emt 0:00:00]} 34. Qg6 {
[%emt 0:01:51]} Rf8 {[%emt 0:01:14] [#]} (34... Qd6 $142 35. Qxf5 d3) 35. a6 $1
{[%emt 0:01:31] aiming for a7.} d3 {[%emt 0:02:31] [#]} 36. Nxf5 $1 {[%emt 0:
03:03]} Rxf5 {[%emt 0:01:15] [#]} 37. Qxf5 {[%emt 0:00:00] Chess con chili.}
Qxf5 {[%emt 0:00:03]} 38. a7 {[%emt 0:00:07]} Kh7 {[%emt 0:01:10][%cal Yb4e1]}
39. a8=Q {[%emt 0:00:07] Endgame KQR-KQB} Bc5 {[%emt 0:01:24]} 40. Rf1 {
[%emt 0:00:23]} d2 {[%emt 0:00:43][%cal Yc5f2]} 41. Kg2 {[%emt 0:39:47]} Bd4 {
[%emt 0:14:23]} 42. Qf3 {[%emt 0:00:00]} Qc2 {[%emt 0:00:25]} (42... Qxf3+ {
was called for.} 43. Kxf3 Bxb2) 43. b4 {[%emt 0:00:00][%cal Yb2b4,Yb4b5] White
is clearly winning.} Qb2 {[%emt 0:03:40]} 44. Qd3+ {[%emt 0:00:00]} g6 {
[%emt 0:00:19]} (44... Kh8 $142 45. Rd1 Bc3) 45. b5 {[%emt 0:00:00] Rd1 is the
strong threat.} h5 {[%emt 0:00:00]} 46. Rd1 {[%emt 0:00:00]} Bc3 {[%emt 0:00:
24]} 47. Rb1 {[%emt 0:00:00] Weighted Error Value: White=0.23 (precise) /
Black=0.33} 1-0

[Event "44th Chess Olympiad Open 2022"]
[Site "Chennai"]
[Date "2022.08.01"]
[Round "4.57"]
[White "Altorky, Amer"]
[Black "Alharthi, Ahmed Mohammed A"]
[Result "1-0"]
[WhiteElo "2040"]
[BlackElo "1935"]
[Annotator "NA RC"]
[PlyCount "83"]
[EventDate "2022.??.??"]
[TimeControl "60"]

1. e4 {[%emt 0:00:07]} d5 {[%emt 0:00:15]} 2. exd5 {[%emt 0:00:25]} Nf6 {
[%emt 0:00:34]} 3. d4 {[%emt 0:00:52]} Qxd5 {[%emt 0:00:26]} 4. Nc3 {[%emt 0:
00:00]} Qa5 {[%emt 0:03:51]} 5. Nf3 {[%emt 0:00:51]} Bf5 {[%emt 0:02:03]} 6.
Bd2 {[%emt 0:06:34]} Nbd7 {[%emt 0:00:55]} 7. Bc4 {[%emt 0:04:36]} c6 {[%emt 0:
00:00]} 8. O-O {[%emt 0:03:11]} Qc7 {[%emt 0:03:13]} 9. Re1 {[%emt 0:01:50]} e6
{[%emt 0:01:00]} 10. Rc1 {[%emt 0:13:08]} Be7 {[%emt 0:07:36]} 11. h3 {[%emt 0:
00:00]} O-O {[%emt 0:02:25]} 12. Nh4 {[%emt 0:01:22]} Bg6 {[%emt 0:00:39]} 13.
Nxg6 {[%emt 0:00:39]} hxg6 {[%emt 0:00:12]} 14. Qf3 {[%emt 0:01:52]} Rad8 {
[%emt 0:07:11]} 15. Bb3 {[%emt 0:05:53]} Nb6 {[%emt 0:06:15]} 16. Bf4 {[%emt 0:
00:00]} Bd6 {[%emt 0:01:07]} 17. Bg5 {[%emt 0:00:17]} Be7 {[%emt 0:00:18]} 18.
Ne2 {[%emt 0:03:03]} c5 {[%emt 0:05:34]} 19. dxc5 {[%emt 0:04:29]} Qxc5 {
[%emt 0:00:12]} 20. Be3 {[%emt 0:00:50]} Qc7 {[%emt 0:01:07]} 21. c4 {[%emt 0:
00:00]} Nbd7 {[%emt 0:04:06]} 22. Nd4 {[%emt 0:01:50]} Nc5 {[%emt 0:10:49]} 23.
Bc2 {[%emt 0:03:37]} e5 {[%emt 0:07:18]} 24. Nb5 {[%emt 0:00:30]} Qb8 {[%emt 0:
00:00]} 25. Qe2 {[%emt 0:04:35]} e4 {[%emt 0:03:51]} 26. Rcd1 {[%emt 0:08:46]}
Rfe8 {[%emt 0:03:28]} 27. b4 {[%emt 0:03:57]} Nd3 {[%emt 0:02:46]} 28. Bxa7 {
[%emt 0:00:42]} Qc8 {[%emt 0:00:42]} 29. c5 {[%emt 0:12:17]} Nxe1 {[%emt 0:00:
00]} 30. Rxe1 {[%emt 0:00:02]} Qc6 {[%emt 0:07:49]} 31. Bb6 {[%emt 0:02:30]}
Rd7 {[%emt 0:00:32]} 32. Na7 {[%emt 0:01:55]} Qe6 {[%emt 0:01:38]} 33. Ba4 {
[%emt 0:00:12]} Bf8 {[%emt 0:01:39]} 34. Bxd7 {[%emt 0:01:13]} Qxd7 {[%emt 0:
00:00]} 35. b5 {[%emt 0:02:04]} Nd5 {[%emt 0:01:07]} 36. c6 {[%emt 0:00:28]}
Qf5 {[%emt 0:02:48]} 37. Bd4 {[%emt 0:01:29]} Bd6 {[%emt 0:01:13]} 38. Qg4 {
[%emt 0:02:13]} b6 {[%emt 0:03:58]} 39. a4 {[%emt 0:03:22]} Ra8 {[%emt 0:01:16]
} 40. Qxf5 {[%emt 0:01:56]} gxf5 {[%emt 0:00:20]} 41. a5 {[%emt 0:30:27]} Bb4 {
[%emt 0:07:02]} 42. Rc1 {[%emt 0:00:00]} 1-0

[Event "44th Chess Olympiad Open 2022"]
[Site "Chennai"]
[Date "2022.08.01"]
[Round "4.57"]
[White "Al Mutairi, Abdullah F"]
[Black "Chekh Adm Khedr, Aram"]
[Result "0-1"]
[WhiteElo "1916"]
[BlackElo "2147"]
[Annotator "NA RC"]
[PlyCount "106"]
[EventDate "2022.??.??"]
[TimeControl "60"]

1. d4 {[%emt 0:00:06]} Nf6 {[%emt 0:00:58]} 2. Bf4 {[%emt 0:00:35]} e6 {
[%emt 0:00:09]} 3. e3 {[%emt 0:00:23]} c5 {[%emt 0:00:07]} 4. c3 {[%emt 0:00:
00]} Be7 {[%emt 0:01:05]} 5. Nd2 {[%emt 0:00:16]} cxd4 {[%emt 0:00:37]} 6. exd4
{[%emt 0:00:21]} d6 {[%emt 0:00:34]} 7. Ngf3 {[%emt 0:01:14]} O-O {[%emt 0:00:
00]} 8. Be2 {[%emt 0:01:47]} b6 {[%emt 0:00:38]} 9. O-O {[%emt 0:00:32]} Bb7 {
[%emt 0:00:04]} 10. h3 {[%emt 0:00:27]} Nbd7 {[%emt 0:01:00]} 11. Re1 {[%emt 0:
00:00]} Re8 {[%emt 0:02:47]} 12. Rc1 {[%emt 0:02:16]} a6 {[%emt 0:01:41]} 13.
Nc4 {[%emt 0:01:34]} Nf8 {[%emt 0:00:20]} 14. Qb3 {[%emt 0:00:46]} b5 {[%emt 0:
00:00]} 15. Ncd2 {[%emt 0:00:22]} Ng6 {[%emt 0:02:57]} 16. Bh2 {[%emt 0:00:43]}
Rb8 {[%emt 0:22:33]} 17. Qc2 {[%emt 0:02:56]} Rc8 {[%emt 0:07:22]} 18. a4 {
[%emt 0:03:27]} Bc6 {[%emt 0:06:41]} 19. axb5 {[%emt 0:01:25]} axb5 {[%emt 0:
00:00]} 20. Qb3 {[%emt 0:00:55]} Qd7 {[%emt 0:03:39]} 21. Ra1 {[%emt 0:00:56]}
Ra8 {[%emt 0:03:00]} 22. Bf1 {[%emt 0:01:34]} Nd5 {[%emt 0:05:28]} 23. Qc2 {
[%emt 0:10:52]} Rec8 {[%emt 0:04:41]} 24. Rxa8 {[%emt 0:11:37]} Rxa8 {[%emt 0:
00:00]} 25. Bd3 {[%emt 0:00:43]} Nb6 {[%emt 0:09:35]} 26. Be4 {[%emt 0:01:53]}
Bxe4 {[%emt 0:05:33]} 27. Qxe4 {[%emt 0:07:36]} Ra2 {[%emt 0:01:54]} 28. Qb1 {
[%emt 0:00:41]} Qa7 {[%emt 0:02:04]} 29. b3 {[%emt 0:04:23]} Nh4 {[%emt 0:00:
00]} 30. Qd3 {[%emt 0:06:00]} Nxf3+ {[%emt 0:00:14]} 31. gxf3 {[%emt 0:01:10]}
Qa5 {[%emt 0:03:47]} 32. Ne4 {[%emt 0:00:58]} Nd5 {[%emt 0:03:31]} 33. Rc1 {
[%emt 0:02:21]} Qa3 {[%emt 0:02:14]} 34. Rb1 {[%emt 0:06:34]} f5 {[%emt 0:00:
00]} 35. Nd2 {[%emt 0:00:51]} Kf7 {[%emt 0:00:28]} 36. Kg2 {[%emt 0:02:48]} Bg5
{[%emt 0:01:52]} 37. Ne4 {[%emt 0:08:08]} fxe4 {[%emt 0:00:18]} 38. fxe4 {
[%emt 0:00:05]} Nf6 {[%emt 0:02:14]} 39. Bg3 {[%emt 0:00:33]} Qa8 {[%emt 0:00:
00]} 40. Re1 {[%emt 0:00:46]} Qc6 {[%emt 0:00:19]} 41. c4 {[%emt 0:34:48]} bxc4
{[%emt 0:05:31]} 42. bxc4 {[%emt 0:00:00]} Ra4 {[%emt 0:00:56]} 43. d5 {
[%emt 0:00:00]} Qxc4 {[%emt 0:03:38]} 44. dxe6+ {[%emt 0:00:00]} Qxe6 {[%emt 0:
00:00]} 45. f4 {[%emt 0:00:00]} Ra2+ {[%emt 0:04:31]} 46. Kf3 {[%emt 0:00:00]}
Bxf4 {[%emt 0:01:09]} 47. Kxf4 {[%emt 0:00:00]} Nh5+ {[%emt 0:00:10]} 48. Kf3 {
[%emt 0:00:00]} Nxg3 {[%emt 0:00:57]} 49. Kxg3 {[%emt 0:00:00]} Qe5+ {[%emt 0:
00:00]} 50. Kf3 {[%emt 0:00:00]} Qh5+ {[%emt 0:00:06]} 51. Ke3 {[%emt 0:00:00]}
Qg5+ {[%emt 0:00:32]} 52. Kf3 {[%emt 0:00:00]} Qg2+ {[%emt 0:00:58]} 53. Kf4 {
[%emt 0:00:00]} Rf2+ {[%emt 0:00:11]} 0-1

[Event "44th Chess Olympiad Open 2022"]
[Site "Chennai"]
[Date "2022.08.01"]
[Round "4.57"]
[White "Alzamil, Abdulaziz"]
[Black "Koniahli, Malek."]
[Result "0-1"]
[WhiteElo "1871"]
[BlackElo "2238"]
[Annotator "NA RC"]
[PlyCount "66"]
[EventDate "2022.??.??"]
[TimeControl "60"]

1. d4 {[%emt 0:00:02]} Nf6 {[%emt 0:00:06]} 2. Nf3 {[%emt 0:00:05]} d5 {
[%emt 0:00:40]} 3. Bf4 {[%emt 0:00:11]} c5 {[%emt 0:00:53]} 4. e3 {[%emt 0:00:
00]} Nc6 {[%emt 0:00:05]} 5. c3 {[%emt 0:02:18]} cxd4 {[%emt 0:00:20]} 6. exd4
{[%emt 0:00:16]} Bf5 {[%emt 0:00:07]} 7. Qb3 {[%emt 0:02:22]} Qc8 {[%emt 0:00:
00]} 8. Nbd2 {[%emt 0:02:02]} e6 {[%emt 0:00:11]} 9. Bb5 {[%emt 0:04:05]} Be7 {
[%emt 0:06:03]} 10. h3 {[%emt 0:14:43]} O-O {[%emt 0:02:47]} 11. O-O {[%emt 0:
00:00]} a6 {[%emt 0:00:25]} 12. Be2 {[%emt 0:00:09]} b5 {[%emt 0:02:22]} 13.
Bh2 {[%emt 0:13:13]} h6 {[%emt 0:00:41]} 14. a4 {[%emt 0:02:15]} Na5 {[%emt 0:
00:00]} 15. Qa2 {[%emt 0:01:12]} Nc4 {[%emt 0:00:14]} 16. Rfc1 {[%emt 0:04:35]}
Qb7 {[%emt 0:02:39]} 17. Qb3 {[%emt 0:04:08]} Na5 {[%emt 0:07:31]} 18. Qd1 {
[%emt 0:04:52]} b4 {[%emt 0:03:02]} 19. c4 {[%emt 0:13:46]} dxc4 {[%emt 0:00:
00]} 20. Nxc4 {[%emt 0:02:23]} Nxc4 {[%emt 0:00:05]} 21. Rxc4 {[%emt 0:00:36]}
Nd5 {[%emt 0:06:29]} 22. a5 {[%emt 0:01:36]} Rfc8 {[%emt 0:01:11]} 23. Nd2 {
[%emt 0:02:27]} Rxc4 {[%emt 0:01:56]} 24. Nxc4 {[%emt 0:00:18]} Rc8 {[%emt 0:
00:00]} 25. Nd6 {[%emt 0:01:31]} Bxd6 {[%emt 0:00:19]} 26. Bxd6 {[%emt 0:00:02]
} Rc2 {[%emt 0:02:40]} 27. Qf1 {[%emt 0:01:17]} Rc6 {[%emt 0:06:00]} 28. Bc5 {
[%emt 0:00:24]} Be4 {[%emt 0:00:11]} 29. Qe1 {[%emt 0:05:51]} Bxg2 {[%emt 0:00:
00]} 30. Kxg2 {[%emt 0:07:57]} Nf4+ {[%emt 0:00:09]} 31. Kg3 {[%emt 0:00:21]}
e5 {[%emt 0:00:11]} 32. Bf3 {[%emt 0:00:42]} Rg6+ {[%emt 0:00:11]} 33. Kh2 {
[%emt 0:00:05]} Rg2+ {[%emt 0:00:17]} 0-1

[Event "44th Chess Olympiad Open 2022"]
[Site "Chennai"]
[Date "2022.08.01"]
[Round "4.58"]
[White "Brahami, Lamine"]
[Black "Ali Abdullahi, Farah"]
[Result "1-0"]
[WhiteElo "2189"]
[BlackElo "1892"]
[Annotator "NA RC"]
[PlyCount "87"]
[EventDate "2022.??.??"]
[TimeControl "60"]

1. d4 {[%emt 0:00:04]} f5 {[%emt 0:00:07]} 2. c4 {[%emt 0:00:26]} Nf6 {[%emt 0:
00:00]} 3. Nc3 {[%emt 0:00:29]} e6 {[%emt 0:00:01]} 4. g3 {[%emt 0:01:16]} Be7
{[%emt 0:01:10]} 5. Bg2 {[%emt 0:00:24]} O-O {[%emt 0:00:48]} 6. Nf3 {[%emt 0:
00:00]} d6 {[%emt 0:01:23]} 7. O-O {[%emt 0:00:31]} c6 {[%emt 0:00:08]} 8. Qc2
{[%emt 0:04:15]} d5 {[%emt 0:01:37]} 9. Rd1 {[%emt 0:02:41]} Ne4 {[%emt 0:00:
00]} 10. Rb1 {[%emt 0:02:45]} a5 {[%emt 0:00:04]} 11. Bf4 {[%emt 0:03:29]} Bf6
{[%emt 0:02:15]} 12. Be5 {[%emt 0:06:32]} Nxc3 {[%emt 0:02:55]} 13. bxc3 {
[%emt 0:00:58]} Nd7 {[%emt 0:04:22]} 14. Bxf6 {[%emt 0:02:54]} Qxf6 {[%emt 0:
00:00]} 15. cxd5 {[%emt 0:10:59]} exd5 {[%emt 0:00:01]} 16. c4 {[%emt 0:00:13]}
dxc4 {[%emt 0:00:53]} 17. Qxc4+ {[%emt 0:00:06]} Kh8 {[%emt 0:00:09]} 18. d5 {
[%emt 0:01:05]} cxd5 {[%emt 0:00:30]} 19. Qxd5 {[%emt 0:00:05]} f4 {[%emt 0:00:
00]} 20. Rdc1 {[%emt 0:02:47]} fxg3 {[%emt 0:07:16]} 21. hxg3 {[%emt 0:00:53]}
h6 {[%emt 0:05:42]} 22. Rxc8 {[%emt 0:04:33]} Raxc8 {[%emt 0:00:37]} 23. Qxd7 {
[%emt 0:00:07]} b6 {[%emt 0:00:50]} 24. e4 {[%emt 0:03:03]} Rfd8 {[%emt 0:00:
00]} 25. Qg4 {[%emt 0:02:52]} Rc4 {[%emt 0:04:15]} 26. e5 {[%emt 0:01:29]} Qc6
{[%emt 0:04:16]} 27. Qf5 {[%emt 0:01:16]} Qc5 {[%emt 0:05:39]} 28. Qg6 {
[%emt 0:02:17]} Rc2 {[%emt 0:08:05]} 29. Rf1 {[%emt 0:09:04]} Re2 {[%emt 0:00:
00]} 30. Ng5 {[%emt 0:01:48]} hxg5 {[%emt 0:14:36]} 31. Qh5+ {[%emt 0:00:08]}
Kg8 {[%emt 0:00:17]} 32. Qxe2 {[%emt 0:00:02]} Re8 {[%emt 0:00:30]} 33. e6 {
[%emt 0:00:43]} b5 {[%emt 0:00:53]} 34. Rd1 {[%emt 0:00:26]} b4 {[%emt 0:00:09]
} 35. Bd5 {[%emt 0:00:48]} g6 {[%emt 0:00:26]} 36. e7+ {[%emt 0:01:03]} Kh7 {
[%emt 0:00:26]} 37. Qe6 {[%emt 0:03:41]} Qxe7 {[%emt 0:02:01]} 38. Qh3+ {
[%emt 0:00:58]} Kg7 {[%emt 0:00:18]} 39. Bc6 {[%emt 0:00:16]} Qe2 {[%emt 0:00:
00]} 40. Rd7+ {[%emt 0:01:08]} Re7 {[%emt 0:02:57]} 41. Rd8 {[%emt 0:31:16]}
Qe1+ {[%emt 0:35:09]} 42. Kg2 {[%emt 0:00:43]} Qe5 {[%emt 0:02:44]} 43. Qh8+ {
[%emt 0:00:21]} Kf7 {[%emt 0:01:06]} 44. Qg8+ {[%emt 0:00:04]} 1-0

[Event "44th Chess Olympiad Open 2022"]
[Site "Chennai"]
[Date "2022.08.01"]
[Round "4.58"]
[White "Abdirahman Omar Sheikh"]
[Black "Nassr, Ali"]
[Result "1-0"]
[WhiteElo "2051"]
[BlackElo "2263"]
[Annotator "TA"]
[PlyCount "117"]
[EventDate "2022.??.??"]
[TimeControl "60"]

{[%evp 12,117,35,-8,-2,-12,-7,-15,-12,0,-14,-21,-20,-17,-14,-24,-21,-31,0,0,0,
-70,-70,-85,-74,-100,-78,-129,-82,-57,-12,-5,-16,-13,-12,-22,-22,-121,-124,
-107,-102,-104,-97,-95,-82,-76,-72,-66,-58,-87,-80,-100,-87,-106,-106,-135,
-129,-218,-211,-204,-145,-149,-136,-123,-140,-440,-48,-54,-62,-56,0,0,0,-29,
-30,-212,-87,-464,-16,-210,0,-42,-58,-81,0,0,8,-68,63,63,174,163,164,170,137,
138,162,158,160,10,10,13,18,10,11,11,184,184]} 1. d4 {[%emt 0:00:16]} d5 {
[%emt 0:00:10]} 2. Nf3 {[%emt 0:00:09]} Nf6 {[%emt 0:00:13]} 3. c4 {[%emt 0:00:
00]} e6 {[%emt 0:00:58]} 4. Nc3 {[%emt 0:00:29]} Be7 {[%emt 0:00:28]} 5. Bf4 {
[%emt 0:00:57]} O-O {[%emt 0:00:40]} 6. e3 {[%emt 0:00:16]} a6 {[%emt 0:05:45]}
7. Bd3 {[%emt 0:01:04]} dxc4 {[%emt 0:01:03] D37: Queen's Gambit Declined: 5
Bf4.} 8. Bxc4 {[%emt 0:00:14]} b5 {[%emt 0:00:35]} 9. Bd3 {[%emt 0:00:50]} Bb7
{[%emt 0:00:38] The position is equal.} 10. O-O {[%emt 0:02:02]} Nbd7 {[%emt 0:
00:00][%cal Yb8d7,Yd7c5,Yc5e4,Ye4d2]} 11. Qe2 {[%emt 0:01:09]} c5 {[%emt 0:01:
18]} 12. dxc5 {[%emt 0:08:01]} Nxc5 {[%emt 0:02:33]} 13. Bc2 {[%emt 0:00:18] 
[#]} b4 $146 {[%emt 0:07:13]} ({Predecessor:} 13... Nce4 14. Be5 Nxc3 15. Bxc3
Qd5 16. Rfd1 Qh5 17. Rac1 Rfd8 18. Rxd8+ Rxd8 19. Rd1 Rxd1+ 20. Qxd1 {½-½ 
(26) Kiviaho,A (2187)-Auvinen,E (1990) Finland 2009}) 14. Na4 {[%emt 0:04:33]}
Nce4 {[%emt 0:08:55]} 15. Rfd1 {[%emt 0:00:57]} Qa5 {[%emt 0:00:00]} 16. Nd2 {
[%emt 0:02:53]} (16. Ne5 $1 $11) 16... Nxd2 $1 $15 {[%emt 0:00:00]} 17. Rxd2 {
[%emt 0:00:16]} Bc6 {[%emt 0:05:05]} 18. b3 {[%emt 0:00:33]} Bb5 $36 {[%emt 0:
01:46] White is under strong pressure.} 19. Bd3 {[%emt 0:01:57]} (19. Qd1 $142)
19... e5 {[%emt 0:04:04]} (19... Nd5 $142 20. h3 Rac8) 20. Bg3 $17 {[%emt 0:01:
43]} e4 {[%emt 0:14:20]} 21. Bc4 {[%emt 0:00:32]} Bxc4 {[%emt 0:01:38]} 22.
Qxc4 {[%emt 0:00:20]} Rac8 {[%emt 0:00:08]} 23. Qe2 {[%emt 0:00:35]} Nd5 {
[%emt 0:01:54]} 24. Rc2 {[%emt 0:05:34]} (24. Rxd5 $11 Qxd5 25. Nb6) 24... Nc3
{[%emt 0:03:02]} 25. Nxc3 {[%emt 0:00:19]} bxc3 {[%emt 0:00:33]} 26. f3 {
[%emt 0:01:12]} exf3 {[%emt 0:01:02]} 27. gxf3 {[%emt 0:00:47]} Ba3 {[%emt 0:
07:21]} 28. Rd1 {[%emt 0:02:23]} Rfd8 {[%emt 0:00:00]} (28... Bb2 $5 29. Be1
Rfd8 30. Rxd8+ Rxd8 $17) 29. Rxd8+ {[%emt 0:04:16]} Rxd8 {[%emt 0:00:07][%cal
Yc8d8,Yd8d6,Yd6g6]} 30. Be1 {[%emt 0:00:08] Inhibits Rd2.} Bb2 {[%emt 0:03:49]}
31. Kg2 {[%emt 0:12:55]} h5 {[%emt 0:03:25]} (31... h6 {looks sharper.} 32. Qc4
Qg5+ 33. Kf2 Qe5) 32. h4 {[%emt 0:01:10]} Rd6 {[%emt 0:00:31]} 33. e4 {[%emt 0:
11:25][%cal Ye3e4,Ye4e5] Prevents Qf5.} Rg6+ {[%emt 0:00:30]} 34. Kh3 {[%emt 0:
03:34]} (34. Kf1 $17 {might work better.}) 34... Qe5 $19 {[%emt 0:01:05]} 35.
Qe3 {[%emt 0:03:07] Against Rg1} Qe6+ {[%emt 0:02:21]} 36. Kh2 {[%emt 0:01:32]}
Qd6+ $1 {[%emt 0:00:00]} (36... Qe7 37. e5 $15) 37. e5 {[%emt 0:03:04]} Qd1 {
[%emt 0:00:11]} 38. Qe4 {[%emt 0:02:48]} (38. Qe2 $17 Qd4 39. Bg3) 38... Qd7 $2
{[%emt 0:03:02]} ({Black should play} 38... Bc1 $1 $19 {[%cal Rc1f4] aiming
for ...Bf4+!} 39. Rxc3 Bf4+ $1 40. Kh1 Bd2 41. Rc8+ Kh7) 39. Qa8+ $15 {[%emt 0:
03:13]} Kh7 {[%emt 0:00:05]} 40. Qe4 {[%emt 0:00:33]} f5 {[%emt 0:00:00]} (
40... Qd8 $15) 41. exf6 $11 {[%emt 0:34:19]} gxf6 {[%emt 0:31:05]} 42. Re2 {
[%emt 0:13:44]} f5 {[%emt 0:07:32]} 43. Qc2 {[%emt 0:00:00]} (43. Qc4 $1 $11)
43... Qd6+ {[%emt 0:00:00]} (43... Qd5 $1 $19 {[%cal Rd5f3] and Black stays
clearly on top.} 44. Re7+ Kh6) 44. Kh3 $2 {[%emt 0:00:00]} (44. Kh1 $17 Qd4 45.
Bf2 (45. Qxf5 $2 Qg1#)) 44... Qd5 $2 {[%emt 0:00:00]} ({Better is} 44... Qf4
$19 45. Re7+ Kh6) 45. Re3 {[%emt 0:00:00]} (45. Re7+ $11 Kh6 46. Qf2) 45... Qb5
$2 {[%emt 0:00:00]} ({Worse is} 45... Qc5 46. Bf2 $11) (45... f4 $1 $19 {
[%cal Rf4e3]} 46. Re4 (46. Re7+ Kh6 $17) 46... Ba3) 46. Rd3 {[%emt 0:00:00]}
Qe5 {[%emt 0:00:00]} 47. Bf2 {[%emt 0:00:00]} Kh6 {[%emt 0:00:00]} (47... Rg7
$1 $17 {White must now prevent ...Ba3.} 48. Rd4 Ba3) 48. Re3 {[%emt 0:00:00]}
Qb5 {[%emt 0:00:00] ( -> ...Qf1+)} 49. Re1 {[%emt 0:00:00] Inhibits Qf1+.} (49.
Bg3 $11) 49... f4 {[%emt 0:00:00]} (49... Qd5 $1 $15 50. Be3+ Kh7) 50. Qe4 $1
$14 {[%emt 0:00:00]} Qd7+ {[%emt 0:00:00]} (50... Qc6 $2 51. Qxf4+ Kh7 52. Bd4
(52. Re7+ Rg7 $18) 52... Qd7+ 53. Kh2 $18) (50... Ba3 $14) 51. Kh2 $18 {
[%emt 0:00:00] Really sharp!} Qd2 {[%emt 0:00:00]} 52. Re2 {[%emt 0:00:00] Bd4
is the strong threat.} Qd6 {[%emt 0:00:00]} 53. Bd4 {[%emt 0:00:33]} Bc1 {
[%emt 0:00:55]} 54. Bxc3 {[%emt 0:03:12] White wants to mate with Qe8.} Qd8 {
[%emt 0:00:07][%cal Rd8h4] [#]} 55. Qe7 {[%emt 0:01:14]} (55. Be1 $1 $16) 55...
Qxe7 $11 {[%emt 0:00:17]} 56. Rxe7 {[%emt 0:00:07]} Rc6 {[%emt 0:00:02]} 57.
Be5 {[%emt 0:00:36] And now Rc7 would win.} Rc2+ {[%emt 0:00:00]} 58. Kh3 {
[%emt 0:00:13] Strongly threatening Rc7.} Kg6 $2 {[%emt 0:00:00] [#]} (58...
Rxa2 $11 {and Black stays safe.} 59. Rc7 Bd2) 59. Rc7 $1 {[%emt 0:00:29] What
a fight! Weighted Error Value: White=0.44/Black=0.58} 1-0